[Event "*** SCC Grand Prix: Titled Tuesday Blitz"]
[Site "Chess.com"]
[Date "2020.07.21"]
[Round "5"]
[White "manmanlai1"]
[Black "Quattroporte300"]
[Result "1-0"]
[WhiteElo "2501"]
[BlackElo "2337"]
[TimeControl "180+1"]
[EndTime "10:55:48 PDT"]
[Termination "manmanlai1 won by resignation"]

1. b3 {[%clk 0:03:00.9]} 1... e5 {[%clk 0:02:57.7]} 2. Bb2 {[%clk 0:03:00.7]}
2... Nc6 {[%clk 0:02:56.9]} 3. e3 {[%clk 0:03:00.8]} 3... Nf6 {[%clk 0:02:56.2]}
4. Bb5 {[%clk 0:02:59.5]} 4... Bd6 {[%clk 0:02:56.5]} 5. Na3 {[%clk 0:02:59.1]}
5... a6 {[%clk 0:02:50.2]} 6. Be2 {[%clk 0:02:51.7]} 6... Be7 {[%clk 0:02:35.4]}
7. Nc4 {[%clk 0:02:48.2]} 7... d6 {[%clk 0:02:35.3]} 8. d4 {[%clk 0:02:41.7]}
8... exd4 {[%clk 0:02:27.8]} 9. exd4 {[%clk 0:02:42.6]} 9... d5 {[%clk
0:02:24.8]} 10. Ne5 {[%clk 0:02:40.8]} 10... O-O {[%clk 0:02:13.5]} 11. Nxc6
{[%clk 0:02:34]} 11... bxc6 {[%clk 0:02:13.4]} 12. Nf3 {[%clk 0:02:34.5]} 12...
c5 {[%clk 0:02:10.9]} 13. O-O {[%clk 0:02:33.6]} 13... cxd4 {[%clk 0:02:10.4]}
14. Nxd4 {[%clk 0:02:33.4]} 14... Qd6 {[%clk 0:01:53.8]} 15. Bd3 {[%clk
0:02:15.7]} 15... c5 {[%clk 0:01:41.1]} 16. Nf5 {[%clk 0:02:15.1]} 16... Bxf5
{[%clk 0:01:41.5]} 17. Bxf5 {[%clk 0:02:15.9]} 17... d4 {[%clk 0:01:37.4]} 18.
c3 {[%clk 0:02:11.4]} 18... Rad8 {[%clk 0:01:29.7]} 19. cxd4 {[%clk 0:02:10.7]}
19... cxd4 {[%clk 0:01:29.4]} 20. Bd3 {[%clk 0:02:03.9]} 20... Nd7 {[%clk
0:01:14.6]} 21. Re1 {[%clk 0:01:52.5]} 21... Bf6 {[%clk 0:01:08]} 22. Rc1 {[%clk
0:01:47.9]} 22... Rfe8 {[%clk 0:00:54.5]} 23. Rxe8+ {[%clk 0:01:31.5]} 23...
Rxe8 {[%clk 0:00:54.6]} 24. Bf1 {[%clk 0:01:22.2]} 24... g6 {[%clk 0:00:48.4]}
25. Qd3 {[%clk 0:01:17.8]} 25... Re6 {[%clk 0:00:32.8]} 26. Rd1 {[%clk
0:01:09.2]} 26... Ne5 {[%clk 0:00:30]} 27. Qe4 {[%clk 0:00:58.2]} 27... Nd7
{[%clk 0:00:14.2]} 28. Qa8+ {[%clk 0:00:41.6]} 28... Kg7 {[%clk 0:00:14.6]} 29.
Bc4 {[%clk 0:00:41.2]} 29... Nb6 {[%clk 0:00:08.7]} 30. Qxa6 {[%clk 0:00:40.5]}
30... Nxc4 {[%clk 0:00:08.8]} 31. Qxc4 {[%clk 0:00:41.4]} 31... Re4 {[%clk
0:00:06.8]} 32. g3 {[%clk 0:00:32.1]} 32... h5 {[%clk 0:00:04.2]} 33. b4 {[%clk
0:00:27.7]} 33... h4 {[%clk 0:00:03.6]} 34. b5 {[%clk 0:00:25.7]} 34... hxg3
{[%clk 0:00:03.1]} 35. hxg3 {[%clk 0:00:24.9]} 35... Qe5 {[%clk 0:00:03.7]} 36.
b6 {[%clk 0:00:14]} 36... Re1+ {[%clk 0:00:03.8]} 37. Rxe1 {[%clk 0:00:13.9]}
37... Qxe1+ {[%clk 0:00:04.3]} 38. Kg2 {[%clk 0:00:13.4]} 38... Qe4+ {[%clk
0:00:04.8]} 39. Kg1 {[%clk 0:00:10.9]} 39... Qb1+ {[%clk 0:00:04.8]} 40. Qc1
{[%clk 0:00:10.7]} 40... Qxa2 {[%clk 0:00:03.4]} 41. b7 {[%clk 0:00:10.9]} 41...
Qb3 {[%clk 0:00:03.7]} 42. Qc7 {[%clk 0:00:09.2]} 42... Qd1+ {[%clk 0:00:02]}
43. Kg2 {[%clk 0:00:09.3]} 43... d3 {[%clk 0:00:01.9]} 44. b8=Q {[%clk
0:00:09.3]} 1-0

[Event "*** SCC Grand Prix: Titled Tuesday Blitz"]
[Site "Chess.com"]
[Date "2020.07.21"]
[Round "5"]
[White "ural58"]
[Black "TheWolfSpur"]
[Result "1-0"]
[WhiteElo "2536"]
[BlackElo "2376"]
[TimeControl "180+1"]
[EndTime "10:55:50 PDT"]
[Termination "ural58 won by resignation"]

1. e4 {[%clk 0:03:00.9]} 1... c5 {[%clk 0:02:59.7]} 2. b3 {[%clk 0:03:00.4]}
2... g6 {[%clk 0:02:59.1]} 3. Bb2 {[%clk 0:02:59.9]} 3... Nf6 {[%clk 0:02:59.7]}
4. Qf3 {[%clk 0:02:57.4]} 4... Bg7 {[%clk 0:02:27.6]} 5. e5 {[%clk 0:02:56.2]}
5... Ng8 {[%clk 0:02:27.6]} 6. e6 {[%clk 0:02:55.8]} 6... Nf6 {[%clk 0:02:15.4]}
7. exf7+ {[%clk 0:02:55.2]} 7... Kxf7 {[%clk 0:02:16.3]} 8. g4 {[%clk
0:02:54.1]} 8... Kg8 {[%clk 0:01:48.4]} 9. g5 {[%clk 0:02:45.5]} 9... Nh5 {[%clk
0:01:46.1]} 10. Bxg7 {[%clk 0:02:35.6]} 10... Nxg7 {[%clk 0:01:47]} 11. Qd5+
{[%clk 0:02:27.9]} 11... e6 {[%clk 0:01:43.9]} 12. Qxc5 {[%clk 0:02:27]} 12...
Nc6 {[%clk 0:01:35.8]} 13. Nc3 {[%clk 0:02:25]} 13... d6 {[%clk 0:01:28.3]} 14.
Qe3 {[%clk 0:02:24.6]} 14... Nf5 {[%clk 0:01:26.8]} 15. Qf4 {[%clk 0:02:04.9]}
15... e5 {[%clk 0:01:15]} 16. Qc4+ {[%clk 0:01:58.4]} 16... Kg7 {[%clk
0:01:15.6]} 17. h4 {[%clk 0:01:56.2]} 17... Ncd4 {[%clk 0:01:10.6]} 18. O-O-O
{[%clk 0:01:52.9]} 18... Be6 {[%clk 0:01:09.4]} 19. Qd3 {[%clk 0:01:50.1]} 19...
Rc8 {[%clk 0:01:08.2]} 20. Bg2 {[%clk 0:01:36.3]} 20... Qa5 {[%clk 0:00:55.4]}
21. Nge2 {[%clk 0:01:12.1]} 21... Nxe2+ {[%clk 0:00:33]} 22. Qxe2 {[%clk
0:01:11.6]} 22... Nd4 {[%clk 0:00:33.6]} 23. Qe3 {[%clk 0:00:56.8]} 23... Qa3+
{[%clk 0:00:26.3]} 24. Kb1 {[%clk 0:00:56.5]} 24... b5 {[%clk 0:00:17.9]} 25.
Be4 {[%clk 0:00:31.6]} 25... b4 {[%clk 0:00:17.3]} 26. Ne2 {[%clk 0:00:27.8]}
26... Nxe2 {[%clk 0:00:13.7]} 27. Qxe2 {[%clk 0:00:27.1]} 27... Rc5 {[%clk
0:00:14.3]} 28. d4 {[%clk 0:00:14.1]} 28... Ra5 {[%clk 0:00:14.2]} 29. c4 {[%clk
0:00:14.2]} 29... bxc3 {[%clk 0:00:14.5]} 30. d5 {[%clk 0:00:13.7]} 30... Bg4
{[%clk 0:00:11.5]} 31. f3 {[%clk 0:00:13.3]} 31... Bd7 {[%clk 0:00:08.5]} 32.
Rc1 {[%clk 0:00:13.2]} 32... Rc8 {[%clk 0:00:08.5]} 33. Rc2 {[%clk 0:00:13.1]}
33... Rac5 {[%clk 0:00:07.7]} 34. Rhc1 {[%clk 0:00:12.8]} 34... Qa5 {[%clk
0:00:08.3]} 35. h5 {[%clk 0:00:12.9]} 35... Qb4 {[%clk 0:00:06.4]} 36. hxg6
{[%clk 0:00:12.2]} 36... hxg6 {[%clk 0:00:07.3]} 37. Qg2 {[%clk 0:00:11.2]}
37... Bf5 {[%clk 0:00:07.1]} 38. Bxf5 {[%clk 0:00:11]} 38... gxf5 {[%clk
0:00:08]} 39. Qh2 {[%clk 0:00:11]} 39... Rh8 {[%clk 0:00:07.4]} 40. Qe2 {[%clk
0:00:10.9]} 40... Qf4 {[%clk 0:00:07.1]} 41. Qa6 {[%clk 0:00:10.9]} 41... Rxd5
{[%clk 0:00:06.7]} 42. Qxa7+ {[%clk 0:00:10.5]} 42... Kg6 {[%clk 0:00:06.9]} 43.
Qe7 {[%clk 0:00:10.5]} 43... Qxg5 {[%clk 0:00:06]} 44. Qe6+ {[%clk 0:00:09.4]}
44... Qf6 {[%clk 0:00:06.2]} 45. Qxd5 {[%clk 0:00:10]} 45... f4 {[%clk
0:00:05.9]} 46. Qe4+ {[%clk 0:00:09.7]} 46... Kf7 {[%clk 0:00:06.1]} 47. Rxc3
{[%clk 0:00:09.4]} 47... Rh2 {[%clk 0:00:06.6]} 48. Rc7+ {[%clk 0:00:09.2]}
48... Ke6 {[%clk 0:00:06.8]} 49. Qc4+ {[%clk 0:00:09.3]} 49... Kf5 {[%clk
0:00:07]} 1-0

[Event "*** SCC Grand Prix: Titled Tuesday Blitz"]
[Site "Chess.com"]
[Date "2020.07.21"]
[Round "5"]
[White "Rodalquilar"]
[Black "Andreikka"]
[Result "1-0"]
[WhiteElo "2652"]
[BlackElo "2884"]
[TimeControl "180+1"]
[EndTime "10:55:53 PDT"]
[Termination "Rodalquilar won by checkmate"]

1. d4 {[%clk 0:03:00.9]} 1... Nf6 {[%clk 0:02:59.6]} 2. Bf4 {[%clk 0:03:01]}
2... d5 {[%clk 0:02:57.2]} 3. e3 {[%clk 0:03:01.4]} 3... e6 {[%clk 0:02:57.3]}
4. Nf3 {[%clk 0:03:01.6]} 4... Bd6 {[%clk 0:02:57.2]} 5. Bg3 {[%clk 0:03:02.1]}
5... O-O {[%clk 0:02:56.3]} 6. c4 {[%clk 0:03:02.5]} 6... b6 {[%clk 0:02:53.8]}
7. cxd5 {[%clk 0:03:02.6]} 7... exd5 {[%clk 0:02:51.9]} 8. Nc3 {[%clk
0:03:03.1]} 8... Bb7 {[%clk 0:02:51.9]} 9. Qc2 {[%clk 0:03:00.6]} 9... a6 {[%clk
0:02:48.7]} 10. Rd1 {[%clk 0:02:58.7]} 10... Re8 {[%clk 0:02:48.7]} 11. Be2
{[%clk 0:02:58.7]} 11... Bxg3 {[%clk 0:02:46.5]} 12. hxg3 {[%clk 0:02:58.5]}
12... Nbd7 {[%clk 0:02:45]} 13. g4 {[%clk 0:02:54.2]} 13... Ne4 {[%clk
0:02:34.9]} 14. Nxe4 {[%clk 0:02:53.7]} 14... dxe4 {[%clk 0:02:35.8]} 15. Nd2
{[%clk 0:02:54.1]} 15... Nf6 {[%clk 0:02:30.8]} 16. g5 {[%clk 0:02:41]} 16...
Nd7 {[%clk 0:02:22.4]} 17. f4 {[%clk 0:02:41.2]} 17... b5 {[%clk 0:02:14.1]} 18.
Kf2 {[%clk 0:02:26.8]} 18... Bd5 {[%clk 0:02:08.3]} 19. Rh4 {[%clk 0:02:14.4]}
19... Nf8 {[%clk 0:01:51.9]} 20. Rdh1 {[%clk 0:02:14]} 20... Rb8 {[%clk
0:01:51.2]} 21. Bg4 {[%clk 0:02:02.8]} 21... g6 {[%clk 0:01:38.3]} 22. Nb3
{[%clk 0:01:54.8]} 22... Rb6 {[%clk 0:01:34.3]} 23. Nc5 {[%clk 0:01:53.9]} 23...
Rd6 {[%clk 0:01:25.6]} 24. Qc1 {[%clk 0:01:39.6]} 24... f6 {[%clk 0:01:23.8]}
25. gxf6 {[%clk 0:01:38.2]} 25... Qxf6 {[%clk 0:01:24.7]} 26. Nd7 {[%clk
0:01:05]} 26... Nxd7 {[%clk 0:01:10.8]} 27. Rxh7 {[%clk 0:01:04]} 27... Rc6
{[%clk 0:00:59.4]} 28. Rh8+ {[%clk 0:00:36.4]} 28... Qxh8 {[%clk 0:00:58.9]} 29.
Rxh8+ {[%clk 0:00:36.5]} 29... Kxh8 {[%clk 0:00:59.3]} 30. Qh1+ {[%clk
0:00:36.8]} 30... Kg7 {[%clk 0:00:57]} 31. Bxd7 {[%clk 0:00:37]} 31... Rc2+
{[%clk 0:00:57.3]} 32. Kg3 {[%clk 0:00:37.5]} 32... Rh8 {[%clk 0:00:57.3]} 33.
Qd1 {[%clk 0:00:33.3]} 33... Rc4 {[%clk 0:00:34.9]} 34. Qd2 {[%clk 0:00:32]}
34... Rh1 {[%clk 0:00:13.6]} 35. b3 {[%clk 0:00:27.1]} 35... Rcc1 {[%clk
0:00:13.6]} 36. Qa5 {[%clk 0:00:18.2]} 36... Rhe1 {[%clk 0:00:11.7]} 37. Bc6
{[%clk 0:00:07]} 37... Bxc6 {[%clk 0:00:07.5]} 38. Qxc7+ {[%clk 0:00:06.4]}
38... Kh6 {[%clk 0:00:08.2]} 39. Kf2 {[%clk 0:00:04.8]} 39... Rf1+ {[%clk
0:00:06]} 40. Kg3 {[%clk 0:00:05.3]} 40... Rc3 {[%clk 0:00:05.6]} 41. Qd8 {[%clk
0:00:03.5]} 41... Rxe3+ {[%clk 0:00:04.6]} 42. Kg4 {[%clk 0:00:04.1]} 42... Re2
{[%clk 0:00:02.5]} 43. Qh8# {[%clk 0:00:03.9]} 1-0

[Event "*** SCC Grand Prix: Titled Tuesday Blitz"]
[Site "Chess.com"]
[Date "2020.07.21"]
[Round "5"]
[White "monalize"]
[Black "maiconramazzotte99"]
[Result "1-0"]
[WhiteElo "2275"]
[BlackElo "1758"]
[TimeControl "180+1"]
[EndTime "10:55:53 PDT"]
[Termination "monalize won by checkmate"]

1. e4 {[%clk 0:03:00.9]} 1... c5 {[%clk 0:02:57.6]} 2. Nf3 {[%clk 0:02:59.3]}
2... d6 {[%clk 0:02:57.6]} 3. d4 {[%clk 0:02:58.5]} 3... cxd4 {[%clk 0:02:58.5]}
4. Qxd4 {[%clk 0:02:58]} 4... Nf6 {[%clk 0:02:35.1]} 5. h3 {[%clk 0:02:55.9]}
5... Nc6 {[%clk 0:02:32.5]} 6. Qe3 {[%clk 0:02:54.8]} 6... Bd7 {[%clk
0:02:30.6]} 7. Be2 {[%clk 0:02:52.1]} 7... e6 {[%clk 0:02:26.1]} 8. O-O {[%clk
0:02:50.8]} 8... Be7 {[%clk 0:02:26]} 9. Rd1 {[%clk 0:02:50.1]} 9... Qc7 {[%clk
0:02:23.1]} 10. c4 {[%clk 0:02:48.8]} 10... Rc8 {[%clk 0:02:16]} 11. Nc3 {[%clk
0:02:27.9]} 11... Nb4 {[%clk 0:02:14]} 12. Rb1 {[%clk 0:02:19.7]} 12... a6
{[%clk 0:02:09.7]} 13. a3 {[%clk 0:02:17.4]} 13... Nc6 {[%clk 0:02:09.6]} 14. b4
{[%clk 0:02:13.7]} 14... O-O {[%clk 0:01:44.2]} 15. Bb2 {[%clk 0:02:03]} 15...
Na7 {[%clk 0:01:36.8]} 16. Rbc1 {[%clk 0:01:51.8]} 16... Nc6 {[%clk 0:01:35.1]}
17. Rd2 {[%clk 0:01:32.7]} 17... Nd8 {[%clk 0:01:33.4]} 18. e5 {[%clk
0:01:27.4]} 18... Ne8 {[%clk 0:01:29.1]} 19. exd6 {[%clk 0:01:23.4]} 19... Nxd6
{[%clk 0:01:30]} 20. c5 {[%clk 0:01:22.4]} 20... Nf5 {[%clk 0:01:28.5]} 21. Qe5
{[%clk 0:01:10.2]} 21... Bc6 {[%clk 0:01:20.2]} 22. Qxc7 {[%clk 0:01:08.4]}
22... Rxc7 {[%clk 0:01:21.1]} 23. Ne5 {[%clk 0:01:04]} 23... Bf6 {[%clk
0:01:18.8]} 24. Nxc6 {[%clk 0:01:02.3]} 24... Nxc6 {[%clk 0:01:19.7]} 25. Na4
{[%clk 0:00:56.6]} 25... Nfd4 {[%clk 0:01:15.7]} 26. Bc4 {[%clk 0:00:48.9]}
26... Rd8 {[%clk 0:01:12.5]} 27. Rcd1 {[%clk 0:00:47.8]} 27... Nf5 {[%clk
0:01:04.1]} 28. Rxd8+ {[%clk 0:00:44.3]} 28... Bxd8 {[%clk 0:01:03.4]} 29. Nb6
{[%clk 0:00:42.6]} 29... Bf6 {[%clk 0:00:54.9]} 30. Bxf6 {[%clk 0:00:39.5]}
30... gxf6 {[%clk 0:00:54.7]} 31. Kf1 {[%clk 0:00:34]} 31... Ne5 {[%clk
0:00:53.7]} 32. Be2 {[%clk 0:00:31.6]} 32... Kg7 {[%clk 0:00:47.2]} 33. f4
{[%clk 0:00:31]} 33... Nc6 {[%clk 0:00:45.4]} 34. Kf2 {[%clk 0:00:29.9]} 34...
Ncd4 {[%clk 0:00:45.5]} 35. Bf3 {[%clk 0:00:28.7]} 35... Nxf3 {[%clk 0:00:44.6]}
36. Kxf3 {[%clk 0:00:28.3]} 36... e5 {[%clk 0:00:39.6]} 37. g4 {[%clk
0:00:25.1]} 37... Nd4+ {[%clk 0:00:37]} 38. Ke4 {[%clk 0:00:25]} 38... Nc2
{[%clk 0:00:32.7]} 39. Rd3 {[%clk 0:00:23]} 39... Re7 {[%clk 0:00:30.3]} 40. Nd5
{[%clk 0:00:20.9]} 40... Re6 {[%clk 0:00:28.8]} 41. f5 {[%clk 0:00:20.3]} 41...
Re8 {[%clk 0:00:26.7]} 42. Nc7 {[%clk 0:00:19.1]} 42... Rc8 {[%clk 0:00:24.5]}
43. Nd5 {[%clk 0:00:16]} 43... Ne1 {[%clk 0:00:21.3]} 44. Rg3 {[%clk 0:00:14.3]}
44... Rd8 {[%clk 0:00:19.1]} 45. g5 {[%clk 0:00:14.5]} 45... fxg5 {[%clk
0:00:17.8]} 46. Rxg5+ {[%clk 0:00:14.5]} 46... Kf8 {[%clk 0:00:18.4]} 47. f6
{[%clk 0:00:14.3]} 47... Nc2 {[%clk 0:00:16]} 48. Rg3 {[%clk 0:00:13.3]} 48...
Re8 {[%clk 0:00:14.7]} 49. Ne7 {[%clk 0:00:12.7]} 49... Rd8 {[%clk 0:00:11.7]}
50. Rg8# {[%clk 0:00:12.2]} 1-0

[Event "*** SCC Grand Prix: Titled Tuesday Blitz"]
[Site "Chess.com"]
[Date "2020.07.21"]
[Round "5"]
[White "Sashadav97"]
[Black "BogdanDeac"]
[Result "0-1"]
[WhiteElo "2600"]
[BlackElo "2795"]
[TimeControl "180+1"]
[EndTime "10:55:54 PDT"]
[Termination "BogdanDeac won by resignation"]

1. d4 {[%clk 0:03:00.9]} 1... d5 {[%clk 0:03:00.1]} 2. c4 {[%clk 0:02:59.8]}
2... e6 {[%clk 0:03:00.4]} 3. Nc3 {[%clk 0:02:59.9]} 3... c6 {[%clk 0:03:00.1]}
4. e4 {[%clk 0:02:52.4]} 4... dxe4 {[%clk 0:02:59.2]} 5. Nxe4 {[%clk 0:02:53.3]}
5... Bb4+ {[%clk 0:02:59.5]} 6. Bd2 {[%clk 0:02:52.6]} 6... Qxd4 {[%clk
0:02:58.8]} 7. Bxb4 {[%clk 0:02:52.5]} 7... Qxe4+ {[%clk 0:02:58.8]} 8. Be2
{[%clk 0:02:51.9]} 8... a5 {[%clk 0:02:54.1]} 9. Ba3 {[%clk 0:02:34]} 9... Nd7
{[%clk 0:02:40.9]} 10. Nf3 {[%clk 0:01:27.5]} 10... c5 {[%clk 0:02:31.2]} 11.
Qd6 {[%clk 0:01:24.7]} 11... Ra6 {[%clk 0:02:25.5]} 12. Qc7 {[%clk 0:01:19.6]}
12... Ne7 {[%clk 0:02:14.3]} 13. Nd2 {[%clk 0:00:46.1]} 13... Qc6 {[%clk
0:01:51.3]} 14. Qxc6 {[%clk 0:00:35.9]} 14... Rxc6 {[%clk 0:01:42.7]} 15. Bf3
{[%clk 0:00:35.8]} 15... Rc7 {[%clk 0:01:42.7]} 16. Ne4 {[%clk 0:00:34.8]} 16...
Nf5 {[%clk 0:01:42.7]} 17. O-O-O {[%clk 0:00:31.2]} 17... b6 {[%clk 0:01:38.2]}
18. Nd6+ {[%clk 0:00:25.5]} 18... Nxd6 {[%clk 0:01:30.9]} 19. Rxd6 {[%clk
0:00:26.4]} 19... Bb7 {[%clk 0:01:31]} 20. Bxb7 {[%clk 0:00:14.6]} 20... Rxb7
{[%clk 0:01:31]} 21. Rhd1 {[%clk 0:00:15.1]} 21... Ke7 {[%clk 0:01:23.9]} 22. b3
{[%clk 0:00:15]} 22... Rc8 {[%clk 0:01:21.3]} 23. Bb2 {[%clk 0:00:14.6]} 23...
f6 {[%clk 0:01:20.9]} 24. f4 {[%clk 0:00:12.6]} 24... Nb8 {[%clk 0:01:19.2]} 25.
Bc3 {[%clk 0:00:10]} 25... Nc6 {[%clk 0:01:12]} 26. R6d3 {[%clk 0:00:06]} 26...
Rd8 {[%clk 0:01:07.2]} 27. Rxd8 {[%clk 0:00:05.7]} 27... Nxd8 {[%clk 0:01:07.9]}
28. Kc2 {[%clk 0:00:06.3]} 28... Rd7 {[%clk 0:01:07.3]} 29. Re1 {[%clk 0:00:06]}
29... Nc6 {[%clk 0:01:07]} 30. a3 {[%clk 0:00:05.4]} 30... h5 {[%clk 0:01:02.5]}
31. g3 {[%clk 0:00:05.4]} 31... Kf7 {[%clk 0:01:01.6]} 32. h3 {[%clk 0:00:05.5]}
32... Ne7 {[%clk 0:00:50.8]} 33. g4 {[%clk 0:00:03.9]} 33... hxg4 {[%clk
0:00:49.8]} 34. hxg4 {[%clk 0:00:04.8]} 34... Ng6 {[%clk 0:00:50.3]} 35. f5
{[%clk 0:00:03.8]} 35... exf5 {[%clk 0:00:47.9]} 36. gxf5 {[%clk 0:00:04.7]}
36... Ne7 {[%clk 0:00:44.9]} 37. b4 {[%clk 0:00:05.6]} 37... axb4 {[%clk
0:00:44]} 38. axb4 {[%clk 0:00:06.5]} 38... cxb4 {[%clk 0:00:37]} 39. Bxb4
{[%clk 0:00:06.7]} 39... Nxf5 {[%clk 0:00:37.5]} 40. Kb3 {[%clk 0:00:06.6]}
40... Rc7 {[%clk 0:00:34.1]} 41. Bc3 {[%clk 0:00:06.1]} 41... Nd6 {[%clk
0:00:32.3]} 42. Bd4 {[%clk 0:00:03.8]} 42... Nxc4 {[%clk 0:00:30.2]} 43. Kb4
{[%clk 0:00:04.4]} 43... Ne5 {[%clk 0:00:14.8]} 44. Bxe5 {[%clk 0:00:03.3]}
44... fxe5 {[%clk 0:00:14.8]} 45. Rxe5 {[%clk 0:00:04.2]} 45... Rc5 {[%clk
0:00:14.1]} 46. Re2 {[%clk 0:00:02.7]} 46... g5 {[%clk 0:00:13.9]} 0-1

[Event "*** SCC Grand Prix: Titled Tuesday Blitz"]
[Site "Chess.com"]
[Date "2020.07.21"]
[Round "5"]
[White "Arjun2002"]
[Black "kingofthenil"]
[Result "0-1"]
[WhiteElo "2604"]
[BlackElo "2449"]
[TimeControl "180+1"]
[EndTime "10:55:55 PDT"]
[Termination "kingofthenil won by resignation"]

1. e4 {[%clk 0:03:00.9]} 1... Nc6 {[%clk 0:02:59.7]} 2. Nf3 {[%clk 0:02:57.1]}
2... d5 {[%clk 0:03:00.6]} 3. exd5 {[%clk 0:02:56.3]} 3... Qxd5 {[%clk
0:03:01.5]} 4. Nc3 {[%clk 0:02:50.6]} 4... Qh5 {[%clk 0:03:01.9]} 5. Be2 {[%clk
0:02:46.9]} 5... Bg4 {[%clk 0:03:02.4]} 6. d3 {[%clk 0:02:44.3]} 6... O-O-O
{[%clk 0:03:02.7]} 7. Be3 {[%clk 0:02:44.4]} 7... e5 {[%clk 0:03:02.3]} 8. Nd2
{[%clk 0:02:26.9]} 8... Bxe2 {[%clk 0:03:00.9]} 9. Qxe2 {[%clk 0:02:26.9]} 9...
Qg6 {[%clk 0:03:00.6]} 10. Qf3 {[%clk 0:02:06.9]} 10... f5 {[%clk 0:02:40.6]}
11. Nb3 {[%clk 0:01:50.8]} 11... Nf6 {[%clk 0:02:38.2]} 12. O-O-O {[%clk
0:01:42.8]} 12... Bb4 {[%clk 0:02:32.5]} 13. Ne2 {[%clk 0:01:31.7]} 13... Rhe8
{[%clk 0:02:23]} 14. h3 {[%clk 0:01:25.4]} 14... Kb8 {[%clk 0:02:21.5]} 15. a3
{[%clk 0:01:18]} 15... Bd6 {[%clk 0:02:18.1]} 16. g3 {[%clk 0:01:17.8]} 16... e4
{[%clk 0:01:49.8]} 17. dxe4 {[%clk 0:01:17.3]} 17... Ne5 {[%clk 0:01:50]} 18.
Qxf5 {[%clk 0:01:11.8]} 18... Nxe4 {[%clk 0:01:42.9]} 19. Qxg6 {[%clk
0:01:09.4]} 19... Nxg6 {[%clk 0:01:42.5]} 20. Rhe1 {[%clk 0:00:59]} 20... Ne5
{[%clk 0:01:22]} 21. Ned4 {[%clk 0:00:56]} 21... Nc4 {[%clk 0:01:17.8]} 22. Nf5
{[%clk 0:00:52.2]} 22... Be5 {[%clk 0:01:14.7]} 23. Rxd8+ {[%clk 0:00:50]} 23...
Rxd8 {[%clk 0:01:15.6]} 24. c3 {[%clk 0:00:45.5]} 24... Nxe3 {[%clk 0:01:05.4]}
25. Rxe3 {[%clk 0:00:43.9]} 25... Nxf2 {[%clk 0:01:05.4]} 26. Kc2 {[%clk
0:00:38.7]} 26... Bf6 {[%clk 0:01:02.2]} 27. g4 {[%clk 0:00:36.2]} 27... g6
{[%clk 0:00:55.7]} 28. Nfd4 {[%clk 0:00:33.3]} 28... Bg5 {[%clk 0:00:48.3]} 29.
Rf3 {[%clk 0:00:27.6]} 29... Ne4 {[%clk 0:00:46.2]} 30. Ne6 {[%clk 0:00:27.3]}
30... Re8 {[%clk 0:00:46.1]} 31. Nbd4 {[%clk 0:00:25.2]} 31... c5 {[%clk
0:00:36.2]} 32. Kd3 {[%clk 0:00:20.5]} 32... cxd4 {[%clk 0:00:34.5]} 33. Ng7
{[%clk 0:00:20.1]} 33... Re7 {[%clk 0:00:19.3]} 34. Rf8+ {[%clk 0:00:15.1]}
34... Kc7 {[%clk 0:00:19.1]} 35. cxd4 {[%clk 0:00:09.4]} 35... Nd6 {[%clk
0:00:18.9]} 36. Rg8 {[%clk 0:00:07.3]} 36... Re3+ {[%clk 0:00:15.8]} 37. Kc2
{[%clk 0:00:06.5]} 37... Kd7 {[%clk 0:00:13.9]} 38. Rh8 {[%clk 0:00:05.4]} 38...
Bf6 {[%clk 0:00:10.9]} 39. Rxh7 {[%clk 0:00:05.2]} 39... Re7 {[%clk 0:00:11.4]}
40. Rh6 {[%clk 0:00:05.4]} 40... Rxg7 {[%clk 0:00:10.3]} 41. h4 {[%clk
0:00:05.4]} 41... Nf7 {[%clk 0:00:10.2]} 42. g5 {[%clk 0:00:04.1]} 42... Nxh6
{[%clk 0:00:09.9]} 43. gxh6 {[%clk 0:00:03.2]} 43... Rh7 {[%clk 0:00:10]} 44. h5
{[%clk 0:00:04.1]} 44... Rxh6 {[%clk 0:00:10.9]} 45. hxg6 {[%clk 0:00:04.7]}
45... Rxg6 {[%clk 0:00:11.8]} 46. Kd3 {[%clk 0:00:05]} 46... Rg4 {[%clk
0:00:12.7]} 0-1